[Event "Titled Tuesday Blitz December 13 Early 2022"]
[White "Nissinen, Niilo Man"]
[Black "Minko, Dmitry"]
[WhiteFideId "30950767"]
[BlackFideId "24188468"]
[WhiteElo "1896"]
[BlackElo "2147"]
[Result "0-1"]
[Round "02"]
[TimeControl "180+1"]
[Date "2022.12.14"]
[WhiteClock "0:00:01"]
[BlackClock "0:00:40"]

1. e4 {[%clk 0:03:00]}  e5 {[%clk 0:03:00]} 2. Nf3 {[%clk 0:02:59]}  Nc6 {[%clk 0:03:00]} 3. d4 {[%clk 0:02:59]}  exd4 {[%clk 0:03:00]} 4. Nxd4 {[%clk 0:03:00]}  Bc5 {[%clk 0:03:00]} 5. Nb3 {[%clk 0:03:00]}  Bb4+ {[%clk 0:03:00]} 6. c3 {[%clk 0:03:00]}  Be7 {[%clk 0:03:00]} 7. Be3 {[%clk 0:02:58]}  Nf6 {[%clk 0:03:00]} 8. N1d2 {[%clk 0:02:57]}  d5 {[%clk 0:02:56]} 9. Bd3 {[%clk 0:02:52]}  Ne5 {[%clk 0:02:20]} 10. Bc2 {[%clk 0:02:29]}  Ng6 {[%clk 0:02:20]} 11. exd5 {[%clk 0:02:24]}  Nxd5 {[%clk 0:02:18]} 12. Bc5 {[%clk 0:02:20]}  O-O {[%clk 0:02:03]} 13. O-O {[%clk 0:02:02]}  Bxc5 {[%clk 0:02:03]} 14. Nxc5 {[%clk 0:02:01]}  b6 {[%clk 0:02:02]} 15. Nce4 {[%clk 0:01:51]}  Bb7 {[%clk 0:02:02]} 16. Nf3 {[%clk 0:01:49]}  Qe7 {[%clk 0:01:42]} 17. Re1 {[%clk 0:01:35]}  Rad8 {[%clk 0:01:42]} 18. Neg5 {[%clk 0:01:30]}  Qf6 {[%clk 0:01:39]} 19. Ne4 {[%clk 0:01:18]}  Qe7 {[%clk 0:01:22]} 20. Neg5 {[%clk 0:01:15]}  Qc5 {[%clk 0:01:14]} 21. Qe2 {[%clk 0:00:57]}  Ndf4 {[%clk 0:01:14]} 22. Qe3 {[%clk 0:00:54]}  Qb5 {[%clk 0:01:05]} 23. Nxh7 {[%clk 0:00:49]}  Rfe8 {[%clk 0:00:59]} 24. Bd3 {[%clk 0:00:07]}  Nxd3 {[%clk 0:00:47]} 25. Qg5 {[%clk 0:00:03]}  Rxe1+ {[%clk 0:00:39]} 26. Rxe1 {[%clk 0:00:01]}  Qxg5 {[%clk 0:00:40]} 0-1


[Site "https://www.chess.com"]

[Event "Titled Tuesday Blitz December 13 Early 2022"]
[White "Odegov, Artem"]
[Black "Paravyan, David"]
[WhiteFideId "34183644"]
[BlackFideId "4194985"]
[WhiteElo "2300"]
[BlackElo "2551"]
[Result "1/2-1/2"]
[Round "02"]
[TimeControl "180+1"]
[Date "2022.12.13"]
[WhiteClock "0:00:23"]
[BlackClock "0:00:54"]

1. d4 {[%clk 0:03:00]}  Nf6 {[%clk 0:02:59]} 2. c4 {[%clk 0:03:00]}  g6 {[%clk 0:03:00]} 3. Nc3 {[%clk 0:03:01]}  d5 {[%clk 0:03:00]} 4. cxd5 {[%clk 0:03:02]}  Nxd5 {[%clk 0:03:01]} 5. e4 {[%clk 0:03:03]}  Nxc3 {[%clk 0:03:01]} 6. bxc3 {[%clk 0:03:03]}  Bg7 {[%clk 0:03:02]} 7. Bc4 {[%clk 0:03:04]}  c5 {[%clk 0:03:02]} 8. Ne2 {[%clk 0:03:05]}  Nc6 {[%clk 0:03:02]} 9. Be3 {[%clk 0:03:04]}  O-O {[%clk 0:03:02]} 10. O-O {[%clk 0:03:05]}  e6 {[%clk 0:03:03]} 11. Rb1 {[%clk 0:02:56]}  b6 {[%clk 0:02:48]} 12. dxc5 {[%clk 0:02:56]}  Ne5 {[%clk 0:02:48]} 13. Bb5 {[%clk 0:02:52]}  Qc7 {[%clk 0:02:30]} 14. cxb6 {[%clk 0:02:40]}  axb6 {[%clk 0:02:31]} 15. Qb3 {[%clk 0:02:40]}  Ng4 {[%clk 0:02:20]} 16. Bf4 {[%clk 0:02:38]}  Be5 {[%clk 0:02:20]} 17. Bxe5 {[%clk 0:02:38]}  Qxe5 {[%clk 0:02:21]} 18. Ng3 {[%clk 0:02:38]}  Bb7 {[%clk 0:02:11]} 19. Be2 {[%clk 0:02:12]}  Nf6 {[%clk 0:02:10]} 20. f3 {[%clk 0:02:04]}  h5 {[%clk 0:01:53]} 21. Rfd1 {[%clk 0:02:00]}  h4 {[%clk 0:01:52]} 22. Nf1 {[%clk 0:02:00]}  Nh5 {[%clk 0:01:42]} 23. Qb5 {[%clk 0:01:31]}  Qxb5 {[%clk 0:01:23]} 24. Rxb5 {[%clk 0:01:25]}  Nf4 {[%clk 0:01:23]} 25. Bc4 {[%clk 0:01:24]}  Ba6 {[%clk 0:01:23]} 26. Rb4 {[%clk 0:01:17]}  Bxc4 {[%clk 0:01:22]} 27. Rxc4 {[%clk 0:01:18]}  Rxa2 {[%clk 0:01:22]} 28. Rd2 {[%clk 0:01:19]}  Rfa8 {[%clk 0:01:19]} 29. g3 {[%clk 0:01:07]}  Rxd2 {[%clk 0:01:15]} 30. Nxd2 {[%clk 0:01:05]}  Ra2 {[%clk 0:01:11]} 31. gxf4 {[%clk 0:00:55]}  Rxd2 {[%clk 0:01:11]} 32. h3 {[%clk 0:00:53]}  Rb2 {[%clk 0:00:59]} 33. Rb4 {[%clk 0:00:38]}  Rc2 {[%clk 0:00:59]} 34. Rxb6 {[%clk 0:00:33]}  Rxc3 {[%clk 0:00:58]} 35. Kg2 {[%clk 0:00:33]}  Rc2+ {[%clk 0:00:58]} 36. Kg1 {[%clk 0:00:33]}  Kg7 {[%clk 0:00:58]} 37. Rb7 {[%clk 0:00:32]}  Re2 {[%clk 0:00:55]} 38. Rc7 {[%clk 0:00:31]}  Rb2 {[%clk 0:00:55]} 39. Rd7 {[%clk 0:00:30]}  Kf8 {[%clk 0:00:54]} 40. Rc7 {[%clk 0:00:30]}  Rb4 {[%clk 0:00:53]} 41. Ra7 {[%clk 0:00:30]}  f5 {[%clk 0:00:52]} 42. Ra6 {[%clk 0:00:21]}  Kf7 {[%clk 0:00:52]} 43. Ra7+ {[%clk 0:00:21]}  Kf8 {[%clk 0:00:51]} 44. Ra6 {[%clk 0:00:21]}  fxe4 {[%clk 0:00:50]} 45. Rxe6 {[%clk 0:00:21]}  exf3 {[%clk 0:00:49]} 46. Rxg6 {[%clk 0:00:20]}  Rxf4 {[%clk 0:00:48]} 47. Kf2 {[%clk 0:00:20]}  Kf7 {[%clk 0:00:49]} 48. Rg4 {[%clk 0:00:18]}  Rxg4 {[%clk 0:00:48]} 49. hxg4 {[%clk 0:00:19]}  Kg6 {[%clk 0:00:49]} 50. Kxf3 {[%clk 0:00:19]}  Kg5 {[%clk 0:00:50]} 51. Kg2 {[%clk 0:00:20]}  Kxg4 {[%clk 0:00:50]} 52. Kh2 {[%clk 0:00:21]}  h3 {[%clk 0:00:51]} 53. Kh1 {[%clk 0:00:21]}  Kg3 {[%clk 0:00:52]} 54. Kg1 {[%clk 0:00:22]}  h2+ {[%clk 0:00:53]} 55. Kh1 {[%clk 0:00:23]}  Kh3 {[%clk 0:00:54]} 1/2-1/2


[Site "https://www.chess.com"]

[Event "Titled Tuesday Blitz December 13 Early 2022"]
[White "Orozbaev, Eldiar"]
[Black "Manukyan, Sargis A."]
[WhiteFideId "13802240"]
[BlackFideId "13303970"]
[WhiteElo "2154"]
[BlackElo "2187"]
[Result "1/2-1/2"]
[Round "02"]
[TimeControl "180+1"]
[Date "2022.12.14"]
[WhiteClock "0:00:06"]
[BlackClock "0:00:08"]

1. e4 {[%clk 0:02:59]}  c5 {[%clk 0:02:58]} 2. c3 {[%clk 0:02:59]}  d5 {[%clk 0:02:57]} 3. exd5 {[%clk 0:02:59]}  Qxd5 {[%clk 0:02:58]} 4. Nf3 {[%clk 0:02:59]}  Nf6 {[%clk 0:02:58]} 5. d4 {[%clk 0:03:00]}  Bg4 {[%clk 0:02:59]} 6. Be2 {[%clk 0:03:00]}  e6 {[%clk 0:02:59]} 7. h3 {[%clk 0:03:00]}  Bh5 {[%clk 0:02:59]} 8. O-O {[%clk 0:02:57]}  Be7 {[%clk 0:02:59]} 9. Be3 {[%clk 0:02:56]}  cxd4 {[%clk 0:02:59]} 10. Nxd4 {[%clk 0:02:57]}  Bxe2 {[%clk 0:02:58]} 11. Qxe2 {[%clk 0:02:58]}  Nc6 {[%clk 0:02:58]} 12. Nb5 {[%clk 0:02:58]}  Qe5 {[%clk 0:02:45]} 13. f4 {[%clk 0:02:51]}  Qb8 {[%clk 0:02:45]} 14. f5 {[%clk 0:02:52]}  e5 {[%clk 0:02:41]} 15. Nd2 {[%clk 0:02:33]}  O-O {[%clk 0:02:35]} 16. g4 {[%clk 0:02:33]}  Nd5 {[%clk 0:02:32]} 17. g5 {[%clk 0:02:33]}  Nxe3 {[%clk 0:02:29]} 18. Qxe3 {[%clk 0:02:33]}  a6 {[%clk 0:02:29]} 19. Na3 {[%clk 0:02:32]}  Bxa3 {[%clk 0:02:24]} 20. bxa3 {[%clk 0:02:32]}  Qa7 {[%clk 0:02:24]} 21. Qxa7 {[%clk 0:02:29]}  Nxa7 {[%clk 0:02:25]} 22. Ne4 {[%clk 0:02:29]}  Rfd8 {[%clk 0:02:16]} 23. Rad1 {[%clk 0:02:28]}  Rac8 {[%clk 0:02:14]} 24. Nd6 {[%clk 0:02:22]}  Rxc3 {[%clk 0:02:01]} 25. Nxb7 {[%clk 0:02:22]}  Rb8 {[%clk 0:01:58]} 26. Rd7 {[%clk 0:02:07]}  Rxa3 {[%clk 0:01:40]} 27. g6 {[%clk 0:02:01]}  hxg6 {[%clk 0:01:35]} 28. fxg6 {[%clk 0:02:02]}  Rg3+ {[%clk 0:01:28]} 29. Kh2 {[%clk 0:02:01]}  Rxg6 {[%clk 0:01:29]} 30. Rfxf7 {[%clk 0:02:01]}  Nb5 {[%clk 0:01:26]} 31. h4 {[%clk 0:01:33]}  Rc8 {[%clk 0:01:24]} 32. h5 {[%clk 0:01:31]}  Rc2+ {[%clk 0:01:20]} 33. Kh3 {[%clk 0:01:31]}  Rc3+ {[%clk 0:01:20]} 34. Kh4 {[%clk 0:01:30]}  Rc4+ {[%clk 0:01:20]} 35. Kh3 {[%clk 0:01:30]}  Rg5 {[%clk 0:01:14]} 36. Nd8 {[%clk 0:01:23]}  Nd4 {[%clk 0:01:03]} 37. Rde7 {[%clk 0:01:10]}  Nf5 {[%clk 0:00:45]} 38. Re8+ {[%clk 0:01:04]}  Kh7 {[%clk 0:00:45]} 39. Rxf5 {[%clk 0:00:40]}  Rxf5 {[%clk 0:00:46]} 40. Ne6 {[%clk 0:00:34]}  Rxh5+ {[%clk 0:00:39]} 41. Kg3 {[%clk 0:00:33]}  Rf5 {[%clk 0:00:36]} 42. Re7 {[%clk 0:00:27]}  Rf6 {[%clk 0:00:36]} 43. Rxg7+ {[%clk 0:00:24]}  Kh6 {[%clk 0:00:36]} 44. Re7 {[%clk 0:00:25]}  Rc6 {[%clk 0:00:24]} 45. Nd8 {[%clk 0:00:23]}  Rc3+ {[%clk 0:00:22]} 46. Kg2 {[%clk 0:00:22]}  Kg6 {[%clk 0:00:20]} 47. Rxe5 {[%clk 0:00:20]}  Rd6 {[%clk 0:00:19]} 48. Ne6 {[%clk 0:00:14]}  Rd2+ {[%clk 0:00:19]} 49. Kf1 {[%clk 0:00:15]}  Rc1+ {[%clk 0:00:19]} 50. Re1 {[%clk 0:00:15]}  Rxe1+ {[%clk 0:00:19]} 51. Kxe1 {[%clk 0:00:16]}  Rxa2 {[%clk 0:00:20]} 52. Kd1 {[%clk 0:00:17]}  Kf5 {[%clk 0:00:20]} 53. Nc5 {[%clk 0:00:16]}  Ke5 {[%clk 0:00:20]} 54. Kc1 {[%clk 0:00:16]}  Kd5 {[%clk 0:00:19]} 55. Kb1 {[%clk 0:00:16]}  Ra5 {[%clk 0:00:17]} 56. Nd3 {[%clk 0:00:16]}  Rb5+ {[%clk 0:00:17]} 57. Ka2 {[%clk 0:00:16]}  Kd4 {[%clk 0:00:17]} 58. Nc1 {[%clk 0:00:15]}  Kc3 {[%clk 0:00:17]} 59. Ne2+ {[%clk 0:00:13]}  Kd3 {[%clk 0:00:18]} 60. Nf4+ {[%clk 0:00:10]}  Kc2 {[%clk 0:00:17]} 61. Ka3 {[%clk 0:00:10]}  Kc3 {[%clk 0:00:13]} 62. Ne2+ {[%clk 0:00:08]}  Kc4 {[%clk 0:00:13]} 63. Nf4 {[%clk 0:00:05]}  Re5 {[%clk 0:00:13]} 64. Ka4 {[%clk 0:00:03]}  Kc5 {[%clk 0:00:08]} 65. Nd3+ {[%clk 0:00:03]}  Kd4 {[%clk 0:00:06]} 66. Nxe5 {[%clk 0:00:04]}  Kxe5 {[%clk 0:00:07]} 67. Ka5 {[%clk 0:00:05]}  Kd6 {[%clk 0:00:08]} 68. Kxa6 {[%clk 0:00:06]} 1/2-1/2


[Site "https://www.chess.com"]

[Event "Titled Tuesday Blitz December 13 Early 2022"]
[White "Ozen, Bahadir"]
[Black "Perera Alfonso, Rene Humberto"]
[WhiteFideId "6337058"]
[BlackFideId "3514722"]
[WhiteElo "2503"]
[BlackElo "2313"]
[Result "1-0"]
[Round "02"]
[TimeControl "180+1"]
[Date "2022.12.14"]
[WhiteClock "0:00:19"]
[BlackClock "0:00:30"]

1. g3 {[%clk 0:03:00]}  e5 {[%clk 0:02:57]} 2. Bg2 {[%clk 0:03:00]}  Nc6 {[%clk 0:02:58]} 3. d3 {[%clk 0:03:00]}  f5 {[%clk 0:02:57]} 4. a3 {[%clk 0:02:58]}  a5 {[%clk 0:02:56]} 5. c4 {[%clk 0:02:53]}  Nf6 {[%clk 0:02:56]} 6. Nc3 {[%clk 0:02:53]}  Bc5 {[%clk 0:02:57]} 7. e3 {[%clk 0:02:53]}  f4 {[%clk 0:02:56]} 8. Nge2 {[%clk 0:02:20]}  fxg3 {[%clk 0:02:52]} 9. Nxg3 {[%clk 0:02:09]}  O-O {[%clk 0:02:49]} 10. Bd2 {[%clk 0:01:59]}  d6 {[%clk 0:02:49]} 11. h3 {[%clk 0:01:59]}  Be6 {[%clk 0:02:40]} 12. Nd5 {[%clk 0:01:47]}  Bxd5 {[%clk 0:02:39]} 13. cxd5 {[%clk 0:01:47]}  Ne7 {[%clk 0:02:38]} 14. b4 {[%clk 0:01:41]}  axb4 {[%clk 0:02:35]} 15. axb4 {[%clk 0:01:42]}  Rxa1 {[%clk 0:02:35]} 16. Qxa1 {[%clk 0:01:43]}  Bb6 {[%clk 0:02:35]} 17. Qa2 {[%clk 0:01:35]}  Qa8 {[%clk 0:02:26]} 18. Qb3 {[%clk 0:01:34]}  Qa1+ {[%clk 0:02:12]} 19. Ke2 {[%clk 0:01:34]}  Qa8 {[%clk 0:02:12]} 20. h4 {[%clk 0:01:09]}  Kh8 {[%clk 0:02:10]} 21. Qc4 {[%clk 0:01:09]}  Qe8 {[%clk 0:02:06]} 22. h5 {[%clk 0:01:08]}  h6 {[%clk 0:02:01]} 23. Ne4 {[%clk 0:00:38]}  Nfxd5 {[%clk 0:01:46]} 24. Nxd6 {[%clk 0:00:38]}  cxd6 {[%clk 0:01:38]} 25. Bxd5 {[%clk 0:00:39]}  Qd7 {[%clk 0:01:30]} 26. Be6 {[%clk 0:00:39]}  Qd8 {[%clk 0:01:30]} 27. Rg1 {[%clk 0:00:38]}  d5 {[%clk 0:01:29]} 28. Qg4 {[%clk 0:00:38]}  g5 {[%clk 0:01:23]} 29. hxg6 {[%clk 0:00:38]}  Kg7 {[%clk 0:01:23]} 30. Bf7 {[%clk 0:00:37]}  Qd6 {[%clk 0:01:21]} 31. Rh1 {[%clk 0:00:36]}  Qf6 {[%clk 0:01:19]} 32. Qg2 {[%clk 0:00:28]}  Rh8 {[%clk 0:00:54]} 33. Rh2 {[%clk 0:00:25]}  h5 {[%clk 0:00:47]} 34. Bxd5 {[%clk 0:00:23]}  Rd8 {[%clk 0:00:40]} 35. Be4 {[%clk 0:00:23]}  h4 {[%clk 0:00:38]} 36. Qg4 {[%clk 0:00:22]}  Rh8 {[%clk 0:00:37]} 37. Bc3 {[%clk 0:00:23]}  Bc7 {[%clk 0:00:35]} 38. Qd7 {[%clk 0:00:23]}  Bb8 {[%clk 0:00:35]} 39. Rh3 {[%clk 0:00:23]}  Qg5 {[%clk 0:00:32]} 40. f4 {[%clk 0:00:19]}  Qg4+ {[%clk 0:00:30]} 41. Qxg4 {[%clk 0:00:19]} 1-0


[Site "https://www.chess.com"]

[Event "Titled Tuesday Blitz December 13 Early 2022"]
[White "Petrovic, Aleksa"]
[Black "Milikow, Yoav"]
[WhiteFideId "967629"]
[BlackFideId "2822237"]
[WhiteElo "2230"]
[BlackElo "2416"]
[Result "1-0"]
[Round "02"]
[TimeControl "180+1"]
[Date "2022.12.14"]
[WhiteClock "0:00:04"]
[BlackClock "0:00:07"]

1. d4 {[%clk 0:03:00]}  Nf6 {[%clk 0:02:59]} 2. c4 {[%clk 0:03:01]}  e6 {[%clk 0:02:58]} 3. Nf3 {[%clk 0:03:01]}  d5 {[%clk 0:02:53]} 4. Nc3 {[%clk 0:03:00]}  Bb4 {[%clk 0:02:51]} 5. Qb3 {[%clk 0:02:59]}  c5 {[%clk 0:02:49]} 6. dxc5 {[%clk 0:02:58]}  Nc6 {[%clk 0:02:49]} 7. Bg5 {[%clk 0:02:57]}  Qa5 {[%clk 0:02:39]} 8. Bxf6 {[%clk 0:02:52]}  dxc4 {[%clk 0:02:39]} 9. Qxc4 {[%clk 0:02:51]}  gxf6 {[%clk 0:02:39]} 10. Rc1 {[%clk 0:02:48]}  Qxc5 {[%clk 0:02:21]} 11. Qh4 {[%clk 0:02:47]}  Ke7 {[%clk 0:02:18]} 12. g3 {[%clk 0:02:47]}  Bxc3+ {[%clk 0:02:17]} 13. bxc3 {[%clk 0:02:45]}  h5 {[%clk 0:02:14]} 14. Bg2 {[%clk 0:02:39]}  Bd7 {[%clk 0:02:12]} 15. O-O {[%clk 0:02:38]}  Rag8 {[%clk 0:02:12]} 16. h3 {[%clk 0:02:27]}  b6 {[%clk 0:02:01]} 17. Rfd1 {[%clk 0:02:25]}  Na5 {[%clk 0:01:55]} 18. Rd4 {[%clk 0:02:15]}  Bc6 {[%clk 0:01:44]} 19. Rcd1 {[%clk 0:01:50]}  Bd5 {[%clk 0:01:13]} 20. Nd2 {[%clk 0:01:42]}  Nc6 {[%clk 0:01:06]} 21. Nb3 {[%clk 0:01:21]}  Qxc3 {[%clk 0:00:57]} 22. Rc1 {[%clk 0:01:04]}  Qb2 {[%clk 0:00:51]} 23. Rxd5 {[%clk 0:00:54]}  exd5 {[%clk 0:00:49]} 24. Rxc6 {[%clk 0:00:54]}  a5 {[%clk 0:00:44]} 25. Bxd5 {[%clk 0:00:49]}  Rc8 {[%clk 0:00:39]} 26. Rxb6 {[%clk 0:00:41]}  Rhd8 {[%clk 0:00:29]} 27. Qe4+ {[%clk 0:00:35]}  Qe5 {[%clk 0:00:29]} 28. Rb7+ {[%clk 0:00:29]}  Kd6 {[%clk 0:00:20]} 29. Qxe5+ {[%clk 0:00:23]}  fxe5 {[%clk 0:00:21]} 30. e4 {[%clk 0:00:21]}  a4 {[%clk 0:00:19]} 31. Na5 {[%clk 0:00:18]}  f5 {[%clk 0:00:18]} 32. Rb4 {[%clk 0:00:14]}  fxe4 {[%clk 0:00:18]} 33. Bxe4 {[%clk 0:00:14]}  Kc5 {[%clk 0:00:17]} 34. Rb2 {[%clk 0:00:08]}  Rd4 {[%clk 0:00:15]} 35. Bf3 {[%clk 0:00:07]}  Rf8 {[%clk 0:00:15]} 36. Nb7+ {[%clk 0:00:06]}  Kc4 {[%clk 0:00:14]} 37. Kg2 {[%clk 0:00:06]}  h4 {[%clk 0:00:13]} 38. Re2 {[%clk 0:00:05]}  Rd7 {[%clk 0:00:09]} 39. Na5+ {[%clk 0:00:04]}  Kb4 {[%clk 0:00:08]} 40. Nc6+ {[%clk 0:00:05]}  Ka3 {[%clk 0:00:09]} 41. Nxe5 {[%clk 0:00:05]}  Rg7 {[%clk 0:00:09]} 42. g4 {[%clk 0:00:04]}  Rc8 {[%clk 0:00:07]} 43. Nc6 {[%clk 0:00:03]}  Rgc7 {[%clk 0:00:06]} 44. Nd4 {[%clk 0:00:03]}  Rc4 {[%clk 0:00:06]} 45. Nb5+ {[%clk 0:00:03]}  Kb4 {[%clk 0:00:07]} 46. Nd6 {[%clk 0:00:04]}  Rc2 {[%clk 0:00:06]} 47. Nxc8 {[%clk 0:00:04]}  Rxc8 {[%clk 0:00:07]} 48. Be4 {[%clk 0:00:04]}  Re8 {[%clk 0:00:07]} 49. Bf3 {[%clk 0:00:04]}  Rd8 {[%clk 0:00:08]} 50. g5 {[%clk 0:00:04]}  Ka3 {[%clk 0:00:08]} 51. g6 {[%clk 0:00:04]}  Rd6 {[%clk 0:00:08]} 52. Be4 {[%clk 0:00:04]}  Rd7 {[%clk 0:00:07]} 53. f4 {[%clk 0:00:04]}  Rd2 {[%clk 0:00:07]} 54. Rxd2 {[%clk 0:00:04]} 1-0


[Site "https://www.chess.com"]

[Event "Titled Tuesday Blitz December 13 Early 2022"]
[White "Przybylski, Wojciech"]
[Black "Khoroshev, Nikita"]
[WhiteFideId "1117599"]
[BlackFideId "14200287"]
[WhiteElo "2217"]
[BlackElo "2354"]
[Result "1-0"]
[Round "02"]
[TimeControl "180+1"]
[Date "2022.12.14"]
[WhiteClock "0:00:05"]
[BlackClock "0:00:11"]

1. e4 {[%clk 0:03:00]}  e5 {[%clk 0:02:55]} 2. Nf3 {[%clk 0:03:00]}  Nc6 {[%clk 0:02:56]} 3. Bb5 {[%clk 0:03:00]}  a6 {[%clk 0:02:56]} 4. Ba4 {[%clk 0:03:00]}  Nf6 {[%clk 0:02:55]} 5. O-O {[%clk 0:03:01]}  b5 {[%clk 0:02:56]} 6. Bb3 {[%clk 0:03:01]}  Bb7 {[%clk 0:02:57]} 7. Re1 {[%clk 0:03:00]}  Bc5 {[%clk 0:02:57]} 8. c3 {[%clk 0:03:00]}  d6 {[%clk 0:02:57]} 9. d4 {[%clk 0:02:58]}  Bb6 {[%clk 0:02:58]} 10. h3 {[%clk 0:02:53]}  h6 {[%clk 0:02:57]} 11. a4 {[%clk 0:02:49]}  O-O {[%clk 0:02:55]} 12. dxe5 {[%clk 0:02:39]}  Nxe5 {[%clk 0:02:51]} 13. a5 {[%clk 0:02:27]}  Ba7 {[%clk 0:02:45]} 14. Nbd2 {[%clk 0:02:23]}  Nd3 {[%clk 0:02:30]} 15. Re2 {[%clk 0:02:23]}  Nh5 {[%clk 0:02:28]} 16. Nf1 {[%clk 0:02:19]}  Nxc1 {[%clk 0:02:24]} 17. Qxc1 {[%clk 0:02:17]}  Qf6 {[%clk 0:02:23]} 18. N1h2 {[%clk 0:01:59]}  Ng3 {[%clk 0:02:16]} 19. Re1 {[%clk 0:01:54]}  Nxe4 {[%clk 0:01:57]} 20. Ng4 {[%clk 0:01:53]}  Qg6 {[%clk 0:01:58]} 21. Nh4 {[%clk 0:01:50]}  Qg5 {[%clk 0:01:54]} 22. Qxg5 {[%clk 0:01:46]}  hxg5 {[%clk 0:01:55]} 23. Nf5 {[%clk 0:01:44]}  Rfe8 {[%clk 0:01:48]} 24. Kh2 {[%clk 0:01:16]}  Nxf2 {[%clk 0:01:30]} 25. Ne7+ {[%clk 0:00:40]}  Kf8 {[%clk 0:01:25]} 26. Bd5 {[%clk 0:00:40]}  Nxg4+ {[%clk 0:01:22]} 27. hxg4 {[%clk 0:00:41]}  Bxd5 {[%clk 0:00:51]} 28. Nxd5 {[%clk 0:00:40]}  Rxe1 {[%clk 0:00:43]} 29. Rxe1 {[%clk 0:00:39]}  Rc8 {[%clk 0:00:44]} 30. Re7 {[%clk 0:00:25]}  Bb8 {[%clk 0:00:44]} 31. Rd7 {[%clk 0:00:23]}  c6 {[%clk 0:00:20]} 32. Nb4 {[%clk 0:00:18]}  d5+ {[%clk 0:00:20]} 33. Kg1 {[%clk 0:00:16]}  Bg3 {[%clk 0:00:17]} 34. Ra7 {[%clk 0:00:05]}  Re8 {[%clk 0:00:17]} 35. Nd3 {[%clk 0:00:04]}  Re3 {[%clk 0:00:17]} 36. Kf1 {[%clk 0:00:04]}  Rxd3 {[%clk 0:00:17]} 37. Ke2 {[%clk 0:00:05]}  Bf2 {[%clk 0:00:10]} 38. Ra8+ {[%clk 0:00:04]}  Ke7 {[%clk 0:00:10]} 39. Kxd3 {[%clk 0:00:05]}  Kd6 {[%clk 0:00:11]} 40. Rxa6 {[%clk 0:00:05]}  g6 {[%clk 0:00:11]} 41. Ra8 {[%clk 0:00:05]}  f5 {[%clk 0:00:11]} 42. a6 {[%clk 0:00:06]}  Kc7 {[%clk 0:00:11]} 43. Rg8 {[%clk 0:00:05]}  fxg4 {[%clk 0:00:11]} 44. Rxg6 {[%clk 0:00:04]}  Kb6 {[%clk 0:00:11]} 45. Rxg5 {[%clk 0:00:04]}  g3 {[%clk 0:00:12]} 46. Rg6 {[%clk 0:00:04]}  Kc7 {[%clk 0:00:11]} 47. Rg7+ {[%clk 0:00:04]}  Kb6 {[%clk 0:00:12]} 48. Rg6 {[%clk 0:00:05]}  Kc7 {[%clk 0:00:12]} 49. b4 {[%clk 0:00:05]}  Bb6 {[%clk 0:00:12]} 50. Rxg3 {[%clk 0:00:05]}  Bf2 {[%clk 0:00:11]} 51. Rg6 {[%clk 0:00:05]}  Kd7 {[%clk 0:00:11]} 52. Rg7+ {[%clk 0:00:05]} 1-0


[Site "https://www.chess.com"]

[Event "Titled Tuesday Blitz December 13 Early 2022"]
[White "Redzisz, Michal"]
[Black "De Souza, Cristiano Gomes"]
[WhiteFideId "21816107"]
[BlackFideId "2151758"]
[WhiteElo "2136"]
[BlackElo "2068"]
[Result "0-1"]
[Round "02"]
[TimeControl "180+1"]
[Date "2022.12.14"]
[WhiteClock "0:00:11"]
[BlackClock "0:00:51"]

1. e4 {[%clk 0:03:00]}  c5 {[%clk 0:02:57]} 2. Nf3 {[%clk 0:03:01]}  d6 {[%clk 0:02:56]} 3. d4 {[%clk 0:03:01]}  cxd4 {[%clk 0:02:57]} 4. Nxd4 {[%clk 0:03:02]}  Nf6 {[%clk 0:02:57]} 5. Nc3 {[%clk 0:03:03]}  a6 {[%clk 0:02:54]} 6. h4 {[%clk 0:03:02]}  e5 {[%clk 0:02:52]} 7. Nb3 {[%clk 0:03:01]}  Be6 {[%clk 0:02:51]} 8. f4 {[%clk 0:03:01]}  exf4 {[%clk 0:02:48]} 9. Bxf4 {[%clk 0:03:02]}  Nc6 {[%clk 0:02:47]} 10. Qd2 {[%clk 0:03:02]}  Ne5 {[%clk 0:02:47]} 11. O-O-O {[%clk 0:02:57]}  h6 {[%clk 0:02:45]} 12. Nd5 {[%clk 0:02:54]}  Nxd5 {[%clk 0:02:44]} 13. exd5 {[%clk 0:02:54]}  Bf5 {[%clk 0:02:44]} 14. Kb1 {[%clk 0:02:26]}  Be7 {[%clk 0:02:42]} 15. Bxe5 {[%clk 0:02:26]}  dxe5 {[%clk 0:02:41]} 16. d6 {[%clk 0:02:27]}  Bf6 {[%clk 0:02:41]} 17. Bd3 {[%clk 0:02:10]}  Bxd3 {[%clk 0:02:37]} 18. Qxd3 {[%clk 0:02:10]}  O-O {[%clk 0:02:37]} 19. Nc5 {[%clk 0:01:56]}  Ra7 {[%clk 0:02:09]} 20. Ne4 {[%clk 0:00:49]}  b5 {[%clk 0:02:04]} 21. g4 {[%clk 0:00:32]}  Bxh4 {[%clk 0:02:00]} 22. d7 {[%clk 0:00:30]}  Rc7 {[%clk 0:01:19]} 23. g5 {[%clk 0:00:20]}  hxg5 {[%clk 0:01:08]} 24. Nxg5 {[%clk 0:00:15]}  Qxg5 {[%clk 0:01:00]} 25. Rdg1 {[%clk 0:00:15]}  Qh6 {[%clk 0:00:55]} 26. Qd6 {[%clk 0:00:11]}  Qxd6 {[%clk 0:00:51]} 0-1


[Site "https://www.chess.com"]